bitfinex/quotes_SOLUSD_20240725
["timestamp","ask_amount","ask_price","bid_price","bid_amount"]
[1721938705789,5.9991,166.69,166.68,0.8022761]
[1721938706305,40.997,166.69,166.68,0.8022761]
[1721938706803,25.9991,166.69,166.68,0.8022761]
[1721938707810,6.0031,166.58,166.51,0.8022761]
[1721938707983,6.0032,166.58,166.51,0.8022761]
[1721938708177,38.06,166.63,166.51,0.8022761]
[1721938708382,20.0,166.62,166.51,0.8022761]
[1721938708601,38.06,166.63,166.51,0.8022761]
[1721938708816,309.1597,166.67,166.51,0.8022761]
[1721938709025,6.0024,166.6,166.51,0.8022761]
[1721938709392,309.1597,166.67,166.51,0.8022761]
[1721938709598,21.50077402,166.66,166.52,1.20061922]
[1721938709900,1.50077402,166.66,166.51,0.8022761]
[1721938710325,6.002,166.62,166.51,45.8022761]
[1721938710697,21.50077402,166.66,166.52,1.20074605]
[1721938711015,27.50127402,166.66,166.52,1.20074605]
[1721938711204,6.001,166.64,166.52,1.20074605]
[1721938711404,21.50077402,166.66,166.52,1.20074605]
[1721938711720,15.0015,166.65,166.51,0.8022761]
[1721938711922,6.003,166.59,166.51,0.8022761]
[1721938712127,1.50103675,166.58,166.51,0.8022761]
[1721938712293,6.0025,166.6,166.51,0.8022761]
[1721938712722,1.50103302,166.65,166.52,1.20082642]
[1721938712918,1.50103302,166.64,166.51,0.8022761]
[1721938713117,6.002,166.62,166.51,0.8022761]
[1721938713399,1.50101726,166.62,166.51,0.8022761]
[1721938713602,1.50102292,166.65,166.52,1.20081833]
[1721938713829,1.50101484,166.66,166.52,1.20081833]
[1721938714006,256.1,166.67,166.52,1.20081833]
[1721938714196,256.1,166.67,166.53,1.93952938]
[1721938714401,262.0999,166.67,166.54,1.20032317]
[1721938714634,256.1,166.67,166.55,3.13962617]
[1721938714830,256.1,166.67,166.56,1.93918004]
[1721938715304,256.1,166.67,166.58,6.1747]
[1721938715623,1.500206,166.66,166.59,17.56553083]
[1721938715832,6.001,166.64,166.6,1.93871445]
[1721938716004,7.50192334,166.63,166.6,1.93871445]
[1721938716323,6.0013,166.63,166.6,1.93871445]
[1721938716533,6.0017,166.62,166.6,1.93871445]
[1721938716742,6.002,166.61,166.6,1.93871445]
[1721938716906,7.50282721,166.61,166.6,1.93871445]
[1721938717111,1.50103563,166.62,166.6,1.93871445]
[1721938717320,6.002,166.61,166.6,1.93871445]
[1721938717530,21.50093463,166.66,166.6,1.93871445]
[1721938718223,6.0012,166.64,166.6,1.93871445]
[1721938718437,21.50093463,166.66,166.6,1.93871445]
[1721938718636,386.4997,166.68,166.6,1.93871445]
[1721938718815,21.50045552,166.67,166.6,1.93871445]
[1721938719016,6.002,166.61,166.6,1.93871445]
[1721938719423,7.50302801,166.61,166.6,1.93871445]
[1721938720422,6.002,166.61,166.6,1.93871445]
[1721938720629,26.22780286,166.67,166.6,1.93871445]
[1721938721031,6.002,166.61,166.6,1.93871445]
[1721938721343,26.002,166.61,166.6,1.93871445]
[1721938721721,27.50317015,166.61,166.6,1.93871445]
[1721938722243,45.51317015,166.61,166.6,1.93871445]
[1721938722552,18.01,166.59,166.51,0.8022761]
[1721938722746,38.06,166.57,166.51,0.8022761]
[1721938723314,39.56138744,166.57,166.51,0.8022761]
[1721938723731,45.56508744,166.57,166.51,0.8022761]
[1721938724334,6.0035,166.57,166.51,0.8022761]
[1721938724515,6.0034,166.57,166.51,0.8022761]
[1721938724724,6.0035,166.57,166.51,0.8022761]
[1721938725121,6.0023,166.61,166.51,0.8022761]
[1721938725327,6.0024,166.6,166.51,2.0030434]
[1721938725544,6.0021,166.61,166.51,0.8022761]
[1721938725940,380.5,166.63,166.52,1.20076666]
[1721938726318,6.0027,166.59,166.51,0.8022761]
[1721938726518,6.0024,166.6,166.51,0.8022761]
[1721938727721,6.0028,166.59,166.51,0.8022761]
[1721938728129,6.0024,166.6,166.51,0.8022761]
[1721938728926,1.50095976,166.63,166.51,0.8022761]
[1721938729121,6.22780286,166.67,166.52,1.20069737]
[1721938729438,20.0,166.66,166.52,1.20069737]
[1721938729749,39.51067898,166.66,166.51,0.8022761]
[1721938730041,6.0027,166.59,166.51,0.8022761]
[1721938730351,6.0026,166.6,166.51,0.8022761]
[1721938730550,6.0021,166.61,166.51,0.8022761]
[1721938730722,7.5031026,166.61,166.51,0.8022761]
[1721938731044,6.0012,166.64,166.52,1.20067166]
[1721938731253,6.0012,166.64,166.53,21.5611]
[1721938731423,6.0012,166.64,166.54,1.20049136]
[1721938731623,1.50065014,166.63,166.53,21.5611]
[1721938731843,6.0017,166.62,166.53,21.5611]
[1721938732425,37.201,166.64,166.54,1.2005858]
[1721938732831,31.2,166.64,166.55,1.20048964]
[1721938733040,31.2,166.68,166.55,1.20048964]
[1721938733233,1.50061206,166.69,166.55,1.20048964]
[1721938733419,6.0005,166.66,166.55,1.20048964]
[1721938733623,1.50045133,166.67,166.55,1.20048964]
[1721938733839,1.50045133,166.65,166.53,21.5611]
[1721938734046,6.0021,166.61,166.53,21.5611]
[1721938734231,6.0024,166.6,166.53,21.5611]
[1721938734554,1.50065475,166.64,166.53,21.5611]
[1721938734737,31.2,166.65,166.53,22.76173502]
[1721938735422,6.001,166.64,166.53,22.76173502]
[1721938736133,6.0013,166.63,166.53,22.76173502]
[1721938736326,6.0017,166.62,166.53,21.5611]
[1721938736654,6.0013,166.63,166.53,21.5611]
[1721938737031,6.0013,166.63,166.54,1.20052933]
[1721938737238,31.2,166.65,166.54,1.20052933]
[1721938737445,6.0013,166.63,166.53,22.76157971]
[1721938738529,6.001,166.64,166.53,22.76157971]
[1721938738728,37.2006,166.65,166.53,22.76157971]
[1721938738935,6.001,166.64,166.53,22.76157971]
[1721938739645,37.2009,166.65,166.53,22.76157971]
[1721938739846,7.72658305,166.7,166.53,22.76157971]
[1721938740023,1.50029836,166.71,166.53,22.76157971]
[1721938740229,32.70026835,166.72,166.54,6.2606]
[1721938740454,5.9992,166.69,166.56,6.2606]
[1721938740639,5.9992,166.69,166.57,1.20012723]
[1721938740955,6.0005,166.66,166.59,15.1932]
[1721938741258,6.0012,166.64,166.59,15.1932]
[1721938741427,1.5006009,166.67,166.59,15.1932]
[1721938741626,6.0013,166.63,166.59,15.1932]
[1721938741849,6.001,166.64,166.59,15.1932]
[1721938742156,1.5006009,166.67,166.59,15.1932]
[1721938742157,6.0017,166.62,166.59,15.1932]
[1721938742328,15.001,166.66,166.59,15.1932]
[1721938742534,31.2,166.64,166.56,6.2606]
[1721938742731,1.50081524,166.63,166.56,6.2606]
[1721938743457,31.2,166.64,166.56,6.2606]
[1721938743623,1.50038501,166.63,166.56,6.2606]
[1721938743828,6.0013,166.63,166.56,6.2606]
[1721938744348,6.0009,166.65,166.56,6.2606]
[1721938744526,6.0002,166.66,166.56,6.2606]
[1721938744731,6.0002,166.66,166.57,1.2003395]
[1721938744933,20.802276,166.8,166.56,6.2606]
[1721938744934,37.41718124,166.72,166.58,1.20024406]
[1721938745127,5.999,166.7,166.58,1.20024406]
[1721938745331,31.2,166.76,166.59,21.9032]
[1721938745533,31.2,166.76,166.61,6.1696]
[1721938745741,5.9963,166.77,166.63,21.9032]
[1721938745956,31.2,166.8,166.65,6.1696]
[1721938746158,6.037,166.84,166.68,6.1696]
[1721938746462,5.9945,166.82,166.69,1.19922624]
[1721938746659,5.9934,166.85,166.69,1.19922624]
[1721938746840,31.2,166.86,166.7,6.1696]
[1721938747041,5.994,166.84,166.71,1.19910034]
[1721938747249,5.9942,166.83,166.71,1.19910034]
[1721938747451,5.9948,166.82,166.71,1.19910034]
[1721938747654,31.2,166.86,166.71,1.19910034]
[1721938747848,31.2,166.86,166.7,7.36882955]
[1721938748072,20.0,166.85,166.71,1.19922955]
[1721938748362,5.9952,166.8,166.71,1.19907922]
[1721938748562,16.48324902,166.84,166.7,6.1696]
[1721938748773,31.2,166.82,166.71,1.1992294]
[1721938749063,5.9965,166.77,166.7,6.1696]
[1721938749253,31.2,166.82,166.7,6.1696]
[1721938749437,1.49908609,166.81,166.7,6.1696]
[1721938749636,32.69900114,166.82,166.7,7.36880091]
[1721938749840,1.49900114,166.82,166.7,7.36880091]
[1721938750046,1.4989662,166.84,166.7,7.36880091]
[1721938750261,31.2,166.83,166.7,7.36880091]
[1721938750459,20.0,166.86,166.71,1.19918683]
[1721938750665,5.9944,166.83,166.72,15.7336]
[1721938750846,1.49876668,166.86,166.73,1.1990972]
[1721938750847,5.9938,166.84,166.73,1.1990972]
[1721938751044,5.9934,166.85,166.74,1.1990963]
[1721938751440,5.9937,166.84,166.74,1.1990963]
[1721938751837,31.2,166.88,166.75,6.1402]
[1721938752065,31.2,166.88,166.76,1.19886895]
[1721938752265,1.49846055,166.87,166.75,6.1402]
[1721938752460,5.9937,166.84,166.75,6.1402]
[1721938752666,5.9934,166.85,166.76,1.19897383]
[1721938753166,32.69825332,166.93,166.77,22.7828772]
[1721938753466,37.1908,166.93,166.77,22.7828772]
[1721938753767,31.2,166.93,166.79,6.1402]
[1721938753940,31.2,166.93,166.8,1.19839637]
[1721938754140,1.49821085,166.92,166.79,6.1402]
[1721938754365,31.2,166.89,166.79,6.1402]
[1721938754569,5.9934,166.85,166.79,6.1402]
[1721938754774,31.2,166.89,166.79,7.33890435]
[1721938754948,5.9927,166.87,166.79,6.1402]
[1721938755268,31.2,166.89,166.79,6.1402]
[1721938755569,37.1919,166.89,166.79,6.1402]
[1721938755773,31.2,166.89,166.79,6.1402]
[1721938755941,1.49822286,166.88,166.79,6.1402]
[1721938756153,5.9941,166.83,166.79,6.1402]
[1721938756343,31.2,166.89,166.79,6.1402]
[1721938756547,5.993,166.86,166.79,6.1402]
[1721938756742,31.2,166.89,166.79,6.1402]
[1721938756962,37.192,166.89,166.8,1.19874691]
[1721938757165,31.2,166.89,166.79,6.1402]
[1721938757379,5.9913,166.91,166.8,1.19856609]
[1721938757695,1.49824911,166.92,166.79,6.1402]
[1721938757852,5.9912,166.91,166.8,15.8126]
[1721938758057,274.11,166.98,166.81,6.5929]
[1721938758058,6.24071524,166.98,166.81,6.5929]
[1721938758244,14.9706,167.0,166.8,37.01120306]
[1721938758245,5.9902,166.94,166.83,6.5929]
[1721938758664,1.49767072,166.97,166.83,7.79130436]
[1721938759045,46.1739,166.96,166.83,6.5929]
[1721938759250,1.4981761,166.95,166.83,6.5929]
[1721938759545,5.992,166.89,166.83,6.5929]
[1721938759772,37.1897,166.96,166.83,6.5929]
[1721938759954,31.2,166.96,166.84,1.1983121]
[1721938760155,21.20905849,167.01,166.84,1.1983121]
[1721938760156,5.9887,166.98,166.84,1.1983121]
[1721938760353,5.9886,166.99,166.84,1.1983121]
[1721938760666,32.69767442,167.0,166.84,21.1983121]
[1721938760870,5.9889,166.98,166.86,6.4941]
[1721938761056,5.9883,166.99,166.87,1.19810269]
[1721938761253,31.2,167.01,166.87,1.19810269]
[1721938761460,5.9883,167.0,166.87,1.19810269]
[1721938761776,5.9876,167.02,166.89,6.4941]
[1721938761964,5.9876,167.02,166.9,1.19778877]
[1721938762476,1.49723867,167.04,166.9,1.19778877]
[1721938762779,5.9876,167.01,166.9,1.19778877]
[1721938762975,1.49723867,167.04,166.9,1.19778877]
[1721938763153,5.9887,166.98,166.89,6.4941]
[1721938763459,1.49756915,166.97,166.89,6.4941]
[1721938763655,31.2,167.01,166.89,6.4941]
[1721938763656,5.9889,166.98,166.89,6.4941]
[1721938763863,5.9884,166.99,166.9,1.19803402]
[1721938764071,5.9876,167.01,166.89,7.69213329]
[1721938764280,1.49735692,167.0,166.89,6.4941]
[1721938764591,21.49735356,167.03,166.89,6.4941]
[1721938764749,5.9889,166.98,166.89,6.4941]
[1721938765159,5.9884,166.99,166.89,6.4941]
[1721938765362,21.49751002,167.03,166.9,1.19800802]
[1721938765870,5.9875,167.02,166.9,1.19800802]
[1721938766068,5.9876,167.01,166.9,1.19800802]
[1721938766258,21.49751002,167.03,166.91,22.1104]
[1721938766461,21.4972409,167.03,166.91,22.1104]
[1721938766648,5.9893,166.97,166.91,22.1104]
[1721938766852,5.9901,166.95,166.91,22.1104]
[1721938767186,1.49782607,167.02,166.91,22.1104]
[1721938767480,1.49750998,167.01,166.91,22.1104]
[1721938767774,20.0,167.03,166.91,22.1104]
[1721938768087,20.0,167.03,166.92,1.19801691]
[1721938768250,31.2,167.04,166.93,1.19779182]
[1721938768452,37.1868,167.04,166.93,1.19779182]
[1721938768652,32.69714355,167.04,166.91,22.1104]
[1721938769055,5.9883,167.0,166.91,22.1104]
[1721938769261,7.48584928,166.99,166.91,22.1104]
[1721938769572,5.9879,167.01,166.91,22.1104]
[1721938769769,7.48545617,167.0,166.91,22.1104]
[1721938769967,5.9875,167.02,166.92,1.19795746]
[1721938770189,5.987,167.03,166.93,1.19771496]
[1721938770567,5.9873,167.02,166.93,1.19771496]
[1721938770764,7.48504637,167.01,166.91,22.1104]
[1721938771381,5.9879,167.01,166.91,22.1104]
[1721938771687,5.9897,166.96,166.91,22.1104]
[1721938772052,5.9898,166.95,166.91,22.1104]
[1721938772253,1.4977457,166.94,166.91,22.1104]
[1721938772455,5.9898,166.95,166.91,22.1104]
[1721938772692,18.01,167.02,166.91,22.1104]
[1721938772693,1.49782215,167.01,166.91,22.1104]
[1721938772878,5.9889,166.98,166.91,22.1104]
[1721938773071,1.49772659,167.0,166.91,22.1104]
[1721938773573,1.49760826,167.03,166.91,22.1104]
[1721938773781,5.988,167.0,166.92,1.1980866]
[1721938773956,5.9876,167.01,166.91,22.1104]
[1721938774156,5.9882,167.0,166.91,22.1104]
[1721938774357,1.49742698,167.02,166.91,22.1104]
[1721938774782,5.9877,167.01,166.91,22.1104]
[1721938774962,5.988,167.0,166.91,22.1104]
[1721938775587,21.49743855,167.03,166.91,22.1104]
[1721938775800,5.9881,167.0,166.91,22.1104]
[1721938776081,5.9883,166.99,166.91,22.1104]
[1721938776483,5.9879,167.01,166.91,22.1104]
[1721938776690,5.9873,167.02,166.91,22.1104]
[1721938776990,37.1865,167.04,166.92,1.19778108]
[1721938777156,37.1865,167.04,166.93,1.19771676]
[1721938777775,5.987,167.03,166.93,1.19771676]
[1721938778065,47.66354667,167.04,166.93,1.19771676]
[1721938778263,5.988,167.0,166.91,22.1104]
[1721938778489,5.9877,167.01,166.91,22.1104]
[1721938778791,5.9873,167.02,166.92,1.19784737]
[1721938778984,5.9873,167.02,166.93,1.19777752]
[1721938779689,37.1866,167.04,166.93,1.19777752]
[1721938780216,5.9869,167.03,166.93,1.19777752]
[1721938780385,31.2,167.08,166.93,1.19771893]
[1721938780592,5.9859,167.06,166.94,6.3322]
[1721938780896,1.4969963,167.07,166.95,1.19759704]
[1721938781096,1.4969963,167.07,166.96,1.19759704]
[1721938781398,31.2,167.08,166.96,1.19759704]
[1721938781776,256.1,167.1,166.96,1.19759704]
[1721938781777,381.3022761,167.11,166.97,22.5535]
[1721938781966,1.49650764,167.1,166.98,21.19720611]
[1721938782166,0.8022761,167.11,166.98,21.19720611]
[1721938782167,0.8022761,167.11,167.01,16.5493]
[1721938782363,0.8022761,167.11,167.02,7.28481296]
[1721938782574,0.8022761,167.11,167.02,6.0879]
[1721938782872,0.8022761,167.11,167.02,7.28497051]
[1721938783378,0.8022761,167.11,167.02,7.2849095]
[1721938785577,380.5,167.2,167.04,6.5199]
[1721938785763,380.5,167.2,167.03,55.3581]
[1721938785764,64.1589,167.24,167.06,6.5199]
[1721938785968,5.9831,167.14,167.06,6.5199]
[1721938786168,1.49622661,167.13,167.06,6.5199]
[1721938786369,1.49625732,167.19,167.06,6.5199]
[1721938786789,5.9838,167.12,167.06,6.5199]
[1721938787172,1.49625724,167.16,167.06,6.5199]
[1721938787373,1.49625732,167.18,167.06,6.5199]
[1721938787568,1.49614645,167.17,167.06,6.5199]
[1721938787775,5.983,167.14,167.06,6.5199]
[1721938787993,5.9827,167.15,167.06,6.5199]
[1721938788176,1.49618667,167.16,167.06,6.5199]
[1721938788373,5.983,167.14,167.06,6.5199]
[1721938788793,5.9827,167.15,167.06,6.5199]
[1721938788987,5.9822,167.17,167.06,6.5199]
[1721938789191,5.983,167.14,167.06,6.5199]
[1721938789378,7.47989498,167.13,167.06,6.5199]
[1721938789579,7.47994018,167.12,167.06,6.5199]
[1721938789908,1.49623997,167.11,167.06,6.5199]
[1721938790067,7.48095031,167.1,167.06,6.5199]
[1721938790268,1.49646172,167.15,167.06,6.5199]
[1721938790499,5.9838,167.12,167.06,6.5199]
[1721938790805,49.9075,167.19,167.06,6.5199]
[1721938790806,1.49629115,167.18,167.07,1.19703292]
[1721938790992,1.49629115,167.18,167.06,6.5199]
[1721938791169,1.49608333,167.17,167.06,6.5199]
[1721938791694,7.47798333,167.17,167.06,6.5199]
[1721938791896,5.9819,167.17,167.06,6.5199]
[1721938792407,671.94908501,167.22,167.07,1.1967598]
[1721938792408,1.49594976,167.21,167.07,1.1967598]
[1721938792575,380.5,167.22,167.08,1.19658857]
[1721938792770,380.5,167.22,167.1,6.185]
[1721938792983,380.5,167.22,167.11,1.1965159]
[1721938793605,1.4956468,167.21,167.1,6.185]
[1721938793777,1.49579877,167.2,167.1,6.185]
[1721938794098,5.9823,167.16,167.1,6.185]
[1721938794487,1.49609309,167.15,167.1,6.185]
[1721938794690,5.9834,167.13,167.1,6.185]
[1721938794889,5.9838,167.12,167.1,6.185]
[1721938795074,50.70624477,167.16,167.03,22.721]
[1721938795282,5.9847,167.1,167.03,22.721]
[1721938795487,5.9841,167.11,167.03,22.721]
[1721938795780,5.9838,167.12,167.03,22.721]
[1721938795979,5.9833,167.14,167.03,22.721]
[1721938796196,7.4794301,167.15,167.03,22.721]
[1721938796409,31.2,167.16,167.03,22.721]
[1721938796410,1.49626435,167.14,167.03,22.721]
[1721938796699,5.9841,167.11,167.03,22.721]
[1721938796881,5.9845,167.1,167.03,22.721]
[1721938797083,5.9848,167.09,167.03,22.721]
[1721938797297,5.9851,167.08,167.03,22.721]
[1721938797606,5.9848,167.09,167.03,22.721]
[1721938797782,5.9841,167.11,167.03,22.721]
[1721938797978,5.9837,167.12,167.03,22.721]
[1721938798183,5.9841,167.11,167.03,22.721]
[1721938798581,5.9841,167.11,167.04,45.0]
[1721938799202,1.49660305,167.13,167.04,45.0]
[1721938799404,7.48020305,167.13,167.04,45.0]
[1721938799709,5.984,167.11,167.04,45.0]
[1721938799879,5.9845,167.1,167.04,45.0]
[1721938800275,5.9844,167.11,167.04,45.0]
[1721938800478,5.9865,167.04,167.03,6.4728]
[1721938800686,31.2,167.08,166.99,6.0716]
[1721938800897,32.69710954,167.08,166.99,6.0716]
[1721938801108,1.49690978,167.07,166.99,6.0716]
[1721938801279,5.9861,167.06,166.99,6.0716]
[1721938801483,5.9869,167.04,166.99,6.0716]
[1721938801792,1.49710824,167.08,166.99,6.0716]
[1721938801991,1.49690334,167.1,166.99,6.0716]
[1721938802504,1.49659751,167.1,166.99,6.0716]
[1721938802805,2.47714235,167.16,167.01,6.3236]
[1721938802985,2.47714235,167.16,167.04,6.3236]
[1721938803400,7.47912385,167.15,167.05,45.0]
[1721938803611,1.49622385,167.14,167.05,45.0]
[1721938803782,1.49622326,167.19,167.05,46.19697861]
[1721938803988,5.9822,167.16,167.05,45.0]
[1721938804315,1.49622326,167.19,167.05,45.0]
[1721938804479,1.49622326,167.19,167.05,46.19675953]
[1721938804795,1.49622326,167.19,167.05,45.0]
[1721938804987,14.9555,167.17,167.05,45.0]
[1721938805183,5.9829,167.15,167.05,45.0]
[1721938805720,7.4774117,167.19,167.05,46.19696936]
[1721938805895,5.9812,167.19,167.05,46.19696936]
[1721938806285,31.2,167.2,167.06,6.1775]
[1721938806509,5.981,167.2,167.07,16.26934828]
[1721938806717,2.396431,167.23,167.09,6.1775]
[1721938807001,1.49543329,167.23,167.1,46.19634641]
[1721938807382,32.69547522,167.24,167.11,1.19638017]
[1721938807580,31.2,167.24,167.11,1.19638017]
[1721938807783,5.98,167.23,167.11,1.19638017]
[1721938808006,32.69547004,167.24,167.11,1.19638017]
[1721938808213,18.01,167.27,167.11,1.19638017]
[1721938808214,5.979,167.26,167.12,23.049]
[1721938808416,1.49546927,167.27,167.13,46.19616127]
[1721938808417,5.9791,167.25,167.13,46.19616127]
[1721938809306,5.9787,167.26,167.13,46.19616127]
[1721938809493,7.47363054,167.27,167.13,46.19616127]
[1721938809907,5.9788,167.26,167.13,46.19616127]
[1721938810242,1.49502342,167.26,167.13,46.19616127]
[1721938810414,0.8022761,167.28,167.15,6.1492]
[1721938810586,29.962874,167.39,167.21,6.1492]
[1721938810785,1.49407003,167.39,167.24,16.4973]
[1721938811005,1.49406518,167.39,167.24,16.4973]
[1721938811201,1.49406518,167.39,167.25,45.0]
[1721938811409,5.9755,167.35,167.25,45.0]
[1721938811710,1.49423121,167.34,167.25,45.0]
[1721938811921,16.43403121,167.34,167.25,45.0]
[1721938812282,1.49466553,167.35,167.24,16.4973]
[1721938812521,1.4943486,167.37,167.24,17.69277888]
[1721938812700,1.4943486,167.37,167.24,16.4973]
[1721938812902,5.9761,167.34,167.24,16.4973]
[1721938813199,5.9755,167.35,167.24,16.4973]
[1721938813399,5.9752,167.36,167.25,1.19534868]
[1721938813806,5.9755,167.35,167.25,1.19534868]
[1721938814008,5.9759,167.34,167.24,16.4973]
[1721938814195,31.2,167.39,167.25,1.19544183]
[1721938814400,31.2,167.43,167.27,22.4567]
[1721938814621,5.9735,167.41,167.28,1.19489239]
[1721938814817,5.9739,167.4,167.28,1.19489239]
[1721938815119,31.2,167.43,167.28,1.19489239]
[1721938815333,0.8022761,167.45,167.29,6.2768]
[1721938815617,2.29575885,167.45,167.3,21.19484698]
[1721938815822,2.29575885,167.45,167.3,1.19484698]
[1721938815990,5.9733,167.42,167.3,1.19484698]
[1721938816186,5.973,167.42,167.3,1.19484698]
[1721938816998,5.9726,167.43,167.3,1.19484698]
[1721938817822,5.9723,167.44,167.31,21.5929]
[1721938818130,2.29565394,167.45,167.32,1.19470227]
[1721938818298,5.9736,167.41,167.31,21.5929]
[1721938818497,5.9729,167.43,167.31,21.5929]
[1721938818699,0.8022761,167.45,167.32,1.19472302]
[1721938818895,5.9727,167.43,167.33,1.19472142]
[1721938819105,5.973,167.42,167.33,1.19472142]
[1721938819309,5.973,167.42,167.31,21.5929]
[1721938819310,5.973,167.42,167.32,6.5273]
[1721938819504,5.9726,167.43,167.32,6.5273]
[1721938819899,2.29576069,167.45,167.32,6.5273]
[1721938820106,5.9737,167.4,167.32,6.5273]
[1721938820307,1.49381667,167.39,167.32,6.5273]
[1721938820609,5.9761,167.34,167.32,6.5273]
[1721938820916,14.9366,167.38,167.27,6.641]
[1721938821219,32.69424405,167.39,167.27,7.83639524]
[1721938821401,31.2,167.39,167.27,7.83639524]
[1721938821614,32.69399402,167.44,167.27,7.83639524]
[1721938822201,5.9738,167.4,167.27,7.83639524]
[1721938822732,1.49376635,167.43,167.27,7.83639524]
[1721938823025,5.9741,167.39,167.27,7.83639524]
[1721938823327,5.9737,167.4,167.27,7.83639524]
[1721938824027,5.9743,167.39,167.27,7.83639524]
[1721938824325,5.9744,167.38,167.27,7.83639524]
[1721938824499,31.2,167.44,167.27,7.83639524]
[1721938824699,5.9729,167.43,167.29,6.4168]
[1721938824917,5.9726,167.43,167.3,1.19478254]
[1721938825250,5.9723,167.44,167.31,6.4168]
[1721938825536,2.29589715,167.45,167.33,6.4168]
[1721938825537,0.8022761,167.45,167.33,6.4168]
[1721938825825,2.29559609,167.45,167.33,6.4168]
[1721938826016,5.9723,167.44,167.33,7.61151994]
[1721938826219,5.9736,167.41,167.33,6.4168]
[1721938826428,17.22637117,167.45,167.33,6.4168]
[1721938826803,2.29577117,167.45,167.33,6.4168]
[1721938827001,5.9729,167.43,167.33,7.61163293]
[1721938827315,2.2958226,167.45,167.33,6.4168]
[1721938827625,5.9736,167.41,167.33,6.4168]
[1721938827798,5.9731,167.42,167.33,6.4168]
[1721938828108,5.9737,167.4,167.33,6.4168]
[1721938828307,5.9747,167.38,167.33,6.4168]
[1721938828537,1.49397436,167.42,167.33,6.4168]
[1721938828706,5.9739,167.4,167.33,6.4168]
[1721938828903,5.9758,167.34,167.33,6.4168]
[1721938829120,5.9758,167.34,167.22,1.1951768]
[1721938829121,18.01,167.38,167.22,22.5814]
[1721938829312,5.9773,167.3,167.22,22.5814]
[1721938829627,7.47241033,167.29,167.22,22.5814]
[1721938829932,1.49481398,167.28,167.22,22.5814]
[1721938830113,1.49481398,167.28,167.22,6.2052]
[1721938830309,1.49514421,167.3,167.22,6.2052]
[1721938830628,5.9783,167.28,167.22,6.2052]
[1721938830928,1.49490881,167.3,167.22,6.2052]
[1721938831108,5.978,167.28,167.22,6.2052]
[1721938831305,31.2,167.31,167.22,6.2052]
[1721938831523,1.49471056,167.34,167.23,1.19576845]
[1721938832016,5.9772,167.31,167.23,1.19578477]
[1721938832214,1.49470506,167.35,167.24,1.19576405]
[1721938832530,31.2,167.4,167.26,15.3837]
[1721938832711,5.973,167.42,167.27,46.19522233]
[1721938832916,5.974,167.4,167.27,46.19522233]
[1721938833224,1.49394305,167.43,167.27,46.19522233]
[1721938833431,2.29584233,167.45,167.28,6.5748]
[1721938833632,2.29584233,167.45,167.29,66.19489921]
[1721938833803,31.2,167.44,167.3,1.19489921]
[1721938834007,5.9753,167.36,167.29,45.0]
[1721938834207,1.49408426,167.42,167.29,45.0]
[1721938834514,5.9733,167.42,167.3,1.19508325]
[1721938834724,37.1724,167.44,167.3,1.19508325]
[1721938834917,14.9361,167.38,167.28,6.5748]
[1721938835120,1.49450499,167.37,167.28,6.5748]
[1721938835310,5.9768,167.32,167.28,6.5748]
[1721938835624,46.139,167.35,167.28,6.5748]
[1721938835837,5.9783,167.27,167.26,15.3837]
[1721938836009,31.2,167.31,167.22,6.4232]
[1721938836209,5.9787,167.27,167.22,6.4232]
[1721938836729,7.47372449,167.26,167.22,6.4232]
[1721938836925,7.47422337,167.25,167.22,6.4232]
[1721938837127,1.49511251,167.24,167.22,6.4232]
[1721938837430,1.49511392,167.29,167.22,6.4232]
[1721938837630,5.9788,167.26,167.22,6.4232]
[1721938837826,5.9791,167.25,167.22,6.4232]
[1721938838030,5.9787,167.26,167.22,6.4232]
[1721938838208,1.49511216,167.28,167.22,6.4232]
[1721938838530,52.69496842,167.31,167.22,6.4232]
[1721938839633,5.9782,167.28,167.22,6.4232]